bitfinex/quotes_SOLUSD_20240616
["timestamp","ask_amount","ask_price","bid_price","bid_amount"]
[1718550706386,2.5145,147.15,147.13,2.5147]
[1718550706548,0.8677981,147.16,147.15,12.5721]
[1718550706747,0.8677981,147.16,147.15,75.6042]
[1718550707146,2.25404622,147.21,147.2,35.5313]
[1718550707377,0.50605573,147.21,147.2,98.1156]
[1718550707578,5.46809249,147.31,147.2,98.1156]
[1718550707579,7.5357,147.3,147.25,25.1272]
[1718550707870,7.5357,147.3,147.2,92.98]
[1718550707871,10.0511,147.25,147.2,45.0]
[1718550708079,10.0511,147.25,147.22,5.46]
[1718550708080,2.513,147.23,147.22,5.46]
[1718550708389,22.62,147.22,147.19,7.9737]
[1718550708592,2.5135,147.2,147.19,5.46]
[1718550708747,2.5135,147.21,147.19,7.9737]
[1718550708945,22.6197,147.22,147.19,7.9737]
[1718550708946,15.0798,147.22,147.19,7.9737]
[1718550709152,2.5134,147.21,147.19,2.5137]
[1718550709358,22.6195,147.22,147.14,21.84]
[1718550709359,100.0,147.22,147.14,7.5434]
[1718550709561,7.5413,147.19,147.16,2.5141]
[1718550709793,2.5138,147.19,147.16,5.0284]
[1718550709982,2.5136,147.2,147.17,2.514]
[1718550710493,7.5414,147.19,147.15,12.5717]
[1718550710688,2.5138,147.19,147.17,2.514]
[1718550710864,2.5138,147.19,147.15,12.5717]
[1718550711066,2.5139,147.18,147.16,2.5142]
[1718550711319,2.5138,147.19,147.16,5.0285]
[1718550711462,7.5413,147.19,147.16,2.5141]
[1718550711960,2.5138,147.19,147.17,2.514]
[1718550712167,7.5409,147.2,147.17,2.514]
[1718550712381,2.5136,147.2,147.17,2.5139]
[1718550712571,5.0271,147.2,147.17,2.5139]
[1718550712767,2.5137,147.19,147.17,2.5139]
[1718550713175,2.5137,147.19,147.17,2.514]
[1718550713481,2.5137,147.19,147.16,12.571]
[1718550713682,2.5137,147.19,147.16,15.0851]
[1718550713879,2.5137,147.19,147.16,5.0283]
[1718550714075,2.5138,147.19,147.16,20.1136]
[1718550714272,2.5138,147.19,147.17,2.514]
[1718550714466,25.1361,147.2,147.17,2.514]
[1718550714671,5.0266,147.22,147.19,2.5137]
[1718550714974,101.74245055,147.26,147.2,2.5135]
[1718550714975,7.5392,147.23,147.2,2.5135]
[1718550715292,7.5392,147.23,147.21,2.5133]
[1718550715293,2.5131,147.23,147.21,2.5133]
[1718550715479,1.74245055,147.26,147.14,16.47]
[1718550715480,16.81845055,147.26,147.23,2.5129]
[1718550715688,6.76775055,147.26,147.23,2.5129]
[1718550715872,2.5127,147.25,147.23,2.5129]
[1718550716067,7.5381,147.25,147.22,7.5394]
[1718550716267,2.5129,147.24,147.22,2.5131]
[1718550716474,22.6145,147.25,147.22,47.5131]
[1718550716794,25.1274,147.25,147.22,52.5395]
[1718550716980,7.5382,147.25,147.22,57.5661]
[1718550717179,2.5129,147.24,147.22,52.5395]
[1718550717503,7.5382,147.25,147.22,52.5394]
[1718550717899,2.5129,147.24,147.22,52.5394]
[1718550718103,5.0254,147.25,147.23,2.513]
[1718550718274,2.5127,147.25,147.23,2.513]
[1718550719598,7.5392,147.23,147.21,2.5133]
[1718550719899,2.5131,147.23,147.21,2.5133]
[1718550720104,25.1309,147.23,147.2,7.5405]
[1718550720392,22.6177,147.23,147.2,7.5405]
[1718550720598,7.5393,147.23,147.21,2.5134]
[1718550720785,7.5393,147.23,147.2,22.622]
[1718550720966,7.5393,147.23,147.2,25.1354]
[1718550721165,7.5393,147.23,147.2,7.5404]
[1718550721386,1.74245055,147.26,147.19,20.45]
[1718550721563,1.74245055,147.26,147.25,2.5127]
[1718550721766,1.74245055,147.26,147.25,25.1272]
[1718550722293,1.74245055,147.26,147.25,70.1272]
[1718550722685,1.74245055,147.26,147.25,90.5772]
[1718550722998,1.74245055,147.26,147.25,90.9172]
[1718550723168,1.74245055,147.26,147.25,90.7472]
[1718550723373,1.74245055,147.26,147.25,70.1272]
[1718550724900,1.74245055,147.26,147.25,91.2572]
[1718550725272,1.74245055,147.26,147.25,90.5772]
[1718550725771,1.74245055,147.26,147.25,90.7472]
[1718550725978,1.74245055,147.26,147.25,91.2572]
[1718550726304,1.74245055,147.26,147.25,90.9172]
[1718550726466,1.74245055,147.26,147.25,91.2572]
[1718550727395,1.74245055,147.26,147.25,90.5772]
[1718550727698,1.74245055,147.26,147.25,90.7472]
[1718550727901,1.74245055,147.26,147.25,25.1272]
[1718550729297,1.74245055,147.26,147.25,70.1272]
[1718550729881,1.74245055,147.26,147.24,22.615]
[1718550730082,1.74245055,147.26,147.24,15.0767]
[1718550730386,1.74245055,147.26,147.25,15.0763]
[1718550730590,1.74245055,147.26,147.25,2.5127]
[1718550730775,1.74245055,147.26,147.25,7.5381]
[1718550731198,1.74245055,147.26,147.25,15.0763]
[1718550731403,1.74245055,147.26,147.25,25.1272]
[1718550731701,20.53889249,147.31,147.3,25.1186]
[1718550731702,2.95639249,147.31,147.3,25.1186]
[1718550732002,2.95639249,147.31,147.3,70.1186]
[1718550732196,2.95639249,147.31,147.3,90.7386]
[1718550732500,2.95639249,147.31,147.3,111.2486]
[1718550732882,2.95639249,147.31,147.3,127.5486]
[1718550733191,2.05188792,147.41,147.4,15.0609]
[1718550733397,2.05188792,147.41,147.4,70.1016]
[1718550734301,2.05188792,147.41,147.4,90.5516]
[1718550734504,2.37782943,147.46,147.4,65.45]
[1718550734804,2.37782943,147.46,147.44,12.5471]
[1718550735017,2.37782943,147.46,147.44,7.5283]
[1718550735304,4.88692943,147.46,147.44,2.5094]
[1718550735476,2.37782943,147.46,147.45,2.5093]
[1718550735681,2.37782943,147.46,147.45,17.5652]
[1718550735880,2.37782943,147.46,147.45,90.5431]
[1718550737173,2.37782943,147.46,147.45,25.0931]
[1718550737372,2.37782943,147.46,147.44,12.5471]
[1718550737608,2.37782943,147.46,147.44,5.0188]
[1718550737799,2.37782943,147.46,147.42,10.0392]
[1718550738112,4.88702943,147.46,147.43,2.5095]
[1718550738307,2.37782943,147.46,147.44,7.5282]
[1718550738479,2.37782943,147.46,147.44,2.5093]
[1718550738683,2.37782943,147.46,147.36,41.2636]
[1718550738891,20.0789,147.42,147.37,2.5105]
[1718550739205,2.5104,147.39,147.36,5.0215]
[1718550739380,7.5312,147.39,147.36,2.5108]
[1718550739580,2.5106,147.38,147.34,7.5334]
[1718550739790,17.5712,147.4,147.35,5.0217]
[1718550740016,2.5104,147.39,147.36,7.5323]
[1718550740201,7.5309,147.4,147.37,2.5106]
[1718550740402,106.0681,147.47,147.36,20.45]
[1718550740699,106.0681,147.47,147.38,7.5312]
[1718550740700,2.51,147.41,147.38,7.5312]
[1718550741012,2.51,147.41,147.3,49.87873589]
[1718550741013,22.5902,147.41,147.3,49.87873589]
[1718550741210,25.1003,147.41,147.38,2.5105]
[1718550741384,25.1003,147.41,147.38,7.5315]
[1718550741385,2.5101,147.41,147.38,7.5315]
[1718550741706,7.5297,147.42,147.39,2.5103]
[1718550742015,2.51,147.41,147.37,22.5953]
[1718550742215,2.51,147.41,147.38,2.5104]
[1718550742583,9.90552943,147.46,147.43,2.5096]
[1718550742791,2.37782943,147.46,147.38,20.45]
[1718550743098,9.90542943,147.46,147.43,2.5095]
[1718550743299,5.0186,147.45,147.41,5.0198]
[1718550743617,7.5289,147.43,147.4,2.51]
[1718550743795,2.5098,147.42,147.39,2.5102]
[1718550744110,17.5679,147.43,147.4,2.5101]
[1718550744111,25.0971,147.43,147.4,2.5101]
[1718550744323,17.5679,147.43,147.4,2.5101]
[1718550744797,7.5292,147.43,147.4,2.5101]
[1718550745307,2.5097,147.43,147.4,7.5302]
[1718550745509,2.5097,147.43,147.4,12.5506]
[1718550745687,5.019,147.44,147.4,22.5909]
[1718550745891,7.529,147.43,147.34,20.45]
[1718550746091,7.529,147.43,147.4,2.51]
[1718550746610,2.5097,147.43,147.4,12.5507]
[1718550746785,100.0,147.45,147.36,20.45]
[1718550746985,100.0,147.45,147.38,2.5104]
[1718550747206,2.51,147.41,147.38,7.5314]
[1718550747607,7.5297,147.42,147.39,3.86705614]
[1718550747807,12.5493,147.42,147.39,2.5103]
[1718550747994,2.51,147.41,147.39,2.5103]
[1718550748193,2.51,147.41,147.38,25.1047]
[1718550748394,2.51,147.41,147.38,7.5313]
[1718550748592,102.88782943,147.46,147.31,20.0]
[1718550748593,10.0411,147.4,147.31,20.0]
[1718550748795,100.0,147.43,147.25,10.0]
[1718550748796,12.5536,147.37,147.33,5.0225]
[1718550749008,10.0421,147.38,147.3,60.4606]
[1718550749009,15.0633,147.38,147.35,2.5109]
[1718550749217,2.5107,147.37,147.34,7.5332]
[1718550749395,7.5312,147.39,147.36,2.5107]
[1718550749602,2.5105,147.38,147.35,15.0658]
[1718550749790,25.1041,147.39,147.36,2.5108]
[1718550749990,2.5105,147.38,147.35,7.5329]
[1718550750389,7.5315,147.38,147.35,2.5109]
[1718550750588,22.5938,147.39,147.36,2.5108]
[1718550750792,7.5313,147.39,147.36,2.5108]
[1718550751097,7.5315,147.38,147.35,2.5108]
[1718550751314,2.5105,147.38,147.35,7.5328]
[1718550751509,7.5313,147.39,147.36,2.5108]
[1718550751902,2.5102,147.4,147.37,2.5106]
[1718550752103,14.52321309,147.41,147.38,2.5104]
[1718550752420,2.5101,147.41,147.38,7.5314]
[1718550752608,15.0601,147.41,147.38,2.5104]
[1718550752919,2.5102,147.4,147.37,25.1061]
[1718550753126,25.1001,147.41,147.38,2.5104]
[1718550753327,2.5101,147.4,147.37,25.1061]
[1718550753816,12.55,147.41,147.37,22.5956]
[1718550754021,2.5101,147.4,147.37,25.1061]
[1718550754430,2.5102,147.4,147.37,25.1061]
[1718550754629,25.1001,147.41,147.38,2.5105]
[1718550755012,7.5301,147.41,147.38,2.5105]
[1718550755641,22.5902,147.41,147.37,17.5743]
[1718550755928,2.5101,147.4,147.37,7.5316]
[1718550756705,7.5304,147.4,147.37,2.5105]
[1718550757022,15.0609,147.4,147.37,2.5105]
[1718550757221,7.5304,147.4,147.37,2.5105]
[1718550757537,12.5508,147.4,147.36,22.5968]
[1718550757835,2.5105,147.38,147.35,7.5327]
[1718550758012,7.5322,147.37,147.34,2.5111]
[1718550758326,2.5107,147.37,147.34,10.0446]
[1718550758532,7.5316,147.38,147.35,2.5109]
[1718550758731,22.5946,147.38,147.34,22.5999]
[1718550758909,2.5106,147.38,147.35,7.5328]
[1718550759107,2.5106,147.38,147.35,2.5109]
[1718550759303,22.5937,147.39,147.35,22.5991]
[1718550759509,7.532,147.37,147.34,2.5111]
[1718550759934,2.5107,147.37,147.34,7.5334]
[1718550760132,2.5109,147.36,147.32,7.5344]
[1718550760343,0.17,147.4,147.32,15.0687]
[1718550760507,7.5327,147.36,147.32,22.6035]
[1718550760703,7.5327,147.36,147.33,2.5112]
[1718550760905,2.5108,147.36,147.33,7.5338]
[1718550761333,0.51,147.4,147.3,22.4394]
[1718550761534,7.5332,147.35,147.32,2.5114]
[1718550761704,25.1105,147.35,147.32,2.5115]
[1718550761909,25.1105,147.35,147.31,22.6044]
[1718550761910,2.5112,147.34,147.31,25.116]
[1718550762111,2.5112,147.34,147.3,16.1705]
[1718550762112,15.0675,147.34,147.3,12.559]
[1718550762313,7.5334,147.35,147.31,12.5582]
[1718550762314,7.5332,147.35,147.31,12.5582]
[1718550762612,2.511,147.35,147.32,7.5343]
[1718550762829,17.5761,147.36,147.33,2.5113]
[1718550763035,7.5327,147.36,147.33,2.5113]
[1718550763341,7.5327,147.36,147.32,22.6031]
[1718550763342,7.5331,147.35,147.32,2.5114]
[1718550763906,25.1103,147.35,147.32,2.5115]
[1718550764222,22.5994,147.35,147.31,22.6044]
[1718550764527,7.5331,147.35,147.32,2.5114]
[1718550765236,2.511,147.35,147.32,12.5575]
[1718550765410,2.5105,147.38,147.35,7.5328]
[1718550765609,2.5105,147.38,147.34,17.5774]
[1718550765829,2.5105,147.38,147.35,7.5329]
[1718550766031,22.5947,147.38,147.35,2.5109]
[1718550766234,7.5322,147.37,147.34,2.5111]
[1718550766443,10.042,147.38,147.28,20.45]
[1718550766737,7.5321,147.37,147.34,2.5111]
[1718550766939,7.5321,147.37,147.34,7.5334]
[1718550767245,2.511,147.35,147.32,10.0461]
[1718550767461,2.511,147.35,147.32,22.6034]
[1718550767760,7.5327,147.36,147.33,7.5339]
[1718550767921,6.99271981,147.39,147.27,43.1624]
[1718550767922,5.0224,147.34,147.3,10.0472]
[1718550768235,7.5332,147.35,147.32,7.5344]
[1718550768435,7.5332,147.35,147.33,2.5113]
[1718550768436,2.511,147.35,147.33,2.5113]
[1718550768826,25.1093,147.36,147.33,2.5113]
[1718550769028,2.511,147.36,147.33,7.5339]
[1718550769246,2.511,147.36,147.33,15.0679]
[1718550769744,2.511,147.36,147.34,2.5111]
[1718550769916,25.1078,147.37,147.34,2.5111]
[1718550770124,2.5109,147.36,147.33,22.6019]
[1718550770335,2.5109,147.36,147.33,7.5339]
[1718550770663,15.0642,147.37,147.34,2.5111]
[1718550770843,25.1069,147.37,147.34,2.5111]
[1718550771055,7.5322,147.37,147.34,7.5334]
[1718550771342,2.5109,147.36,147.33,7.5339]
[1718550771548,17.03441981,147.39,147.36,2.5108]
[1718550771722,12.01351981,147.39,147.36,5.0216]
[1718550772057,29.58611981,147.39,147.35,22.5987]
[1718550772356,2.5105,147.38,147.35,25.1095]
[1718550772932,2.5105,147.38,147.35,22.5987]
[1718550773136,2.5105,147.38,147.35,25.1096]
[1718550773338,7.5315,147.38,147.35,7.5327]
[1718550773541,22.5946,147.38,147.35,2.5109]
[1718550773737,2.5106,147.37,147.34,5.0222]
[1718550773936,22.5963,147.37,147.33,15.0674]
[1718550774145,2.5109,147.36,147.33,15.0676]
[1718550774922,2.5109,147.36,147.33,12.5564]
[1718550775130,7.5326,147.36,147.33,7.5336]
[1718550775340,2.5109,147.36,147.33,15.0676]
[1718550775539,7.5326,147.36,147.33,7.5336]
[1718550776047,2.5109,147.36,147.33,15.0676]
[1718550776250,15.0652,147.36,147.33,2.5112]
[1718550776447,17.5765,147.36,147.27,43.1624]
[1718550776750,15.0663,147.35,147.32,2.5114]
[1718550777055,15.0663,147.35,147.31,22.6044]
[1718550777056,7.5336,147.34,147.31,2.5115]
[1718550777239,2.5112,147.34,147.31,15.0698]
[1718550777551,2.5112,147.34,147.31,15.0699]
[1718550777847,7.5337,147.34,147.31,7.5349]
[1718550778325,2.5112,147.34,147.31,7.5349]
[1718550778525,25.111,147.35,147.32,2.5115]
[1718550778861,2.5112,147.34,147.31,25.1165]
[1718550779828,7.5327,147.36,147.33,2.5113]
[1718550780148,29.59045681,147.37,147.34,2.5111]
[1718550780352,32.10125681,147.37,147.34,2.5111]
[1718550780561,12.5542,147.36,147.33,2.5112]
[1718550780854,15.0652,147.36,147.33,2.5112]
[1718550781031,2.511,147.35,147.32,7.5342]
[1718550781222,106.99375681,147.37,147.31,17.5811]
[1718550781422,7.5337,147.34,147.31,2.5116]
[1718550781626,15.0672,147.34,147.31,2.5116]
[1718550781874,5.0224,147.34,147.31,2.5116]
[1718550782055,22.6008,147.34,147.3,22.6062]
[1718550782355,2.5113,147.34,147.31,7.535]
[1718550782533,7.5337,147.34,147.31,2.5116]
[1718550782740,2.5113,147.33,147.31,2.5116]
[1718550783048,25.1122,147.34,147.31,2.5116]
[1718550783468,2.5113,147.33,147.3,25.118]
[1718550783646,2.5113,147.33,147.3,2.5117]
[1718550783647,5.0228,147.33,147.3,2.5117]
[1718550783848,2.5114,147.33,147.3,15.0709]
[1718550784156,0.17,147.32,147.26,15.4583]
[1718550784371,7.5358,147.3,147.27,2.5123]
[1718550784558,2.512,147.29,147.26,25.1247]
[1718550784738,2.5122,147.28,147.25,7.5378]
[1718550785061,2.5122,147.28,147.25,7.5377]
[1718550785262,2.5122,147.28,147.22,16.0179]
[1718550785263,17.5857,147.28,147.22,16.0179]
[1718550785444,10.0495,147.27,147.24,2.5128]
[1718550785649,10.0496,147.27,147.22,17.5918]
[1718550785852,100.0,147.29,147.22,5.0264]
[1718550785853,22.6132,147.26,147.22,5.0264]
[1718550786171,17.926,147.28,147.23,7.539]
[1718550786370,7.5369,147.28,147.25,2.5126]
[1718550786574,2.5123,147.27,147.24,22.6152]
[1718550786735,2.5125,147.26,147.23,2.5129]
[1718550787060,15.0764,147.25,147.22,2.5131]
[1718550787252,2.5127,147.25,147.22,7.5395]
[1718550787462,2.5129,147.24,147.21,25.133]
[1718550787663,2.5127,147.25,147.22,7.5395]
[1718550787842,14.53683934,147.27,147.18,36.4679]
[1718550788048,9.51203934,147.27,147.24,7.5385]
[1718550788763,2.5125,147.26,147.23,7.5389]
[1718550788966,7.5376,147.26,147.23,2.5129]
[1718550789269,12.5628,147.26,147.22,22.6181]
[1718550789478,12.5628,147.26,147.23,2.513]
[1718550789479,15.0754,147.26,147.23,2.513]
[1718550789641,32.12393934,147.27,147.24,2.5128]
[1718550789840,2.5125,147.26,147.23,15.078]
[1718550790043,6.99953934,147.27,147.25,12.5632]
[1718550790247,6.99953934,147.27,147.26,15.0752]
[1718550790470,2.5119,147.3,147.27,2.5123]
[1718550790471,7.5357,147.3,147.27,2.5123]
[1718550790683,7.5361,147.29,147.26,2.5124]
[1718550790839,106.5856,147.33,147.23,6.5335]
[1718550790840,100.0,147.32,147.24,7.5384]
[1718550791039,7.5363,147.29,147.26,7.5376]
[1718550791278,2.5121,147.29,147.26,15.0751]
[1718550791578,2.512,147.29,147.26,25.1247]
[1718550791760,25.1189,147.3,147.27,2.5123]
[1718550791969,7.5357,147.3,147.27,2.5123]
[1718550792172,5.0236,147.31,147.25,16.0179]
[1718550792482,7.5362,147.29,147.26,2.5124]
[1718550792857,7.5362,147.29,147.26,7.5374]
[1718550793257,2.5121,147.29,147.26,7.5374]
[1718550793458,7.5373,147.27,147.24,2.5128]
[1718550793691,100.17,147.31,147.24,2.5128]
[1718550793692,25.123,147.28,147.25,2.5127]
[1718550793857,15.0728,147.29,147.26,2.5124]
[1718550794057,2.5121,147.29,147.27,2.5123]
[1718550794458,15.0723,147.29,147.26,2.5124]
[1718550794704,2.5121,147.29,147.26,12.5626]
[1718550794996,2.5121,147.29,147.27,2.5123]
[1718550795190,2.5118,147.3,147.27,12.5617]
[1718550795490,2.5119,147.3,147.28,2.5121]
[1718550795697,7.5352,147.31,147.28,7.5364]
[1718550795882,12.5587,147.31,147.28,2.5121]
[1718550796092,2.5119,147.3,147.28,2.5121]
[1718550796399,22.6056,147.31,147.28,2.5121]
[1718550796688,2.5118,147.3,147.28,2.5121]
[1718550796902,2.5118,147.3,147.27,2.5122]
[1718550796903,15.0712,147.3,147.27,2.5122]
[1718550797463,7.5356,147.3,147.27,2.5122]
[1718550797663,2.5118,147.31,147.28,5.0244]
[1718550797967,7.5357,147.3,147.27,7.537]
[1718550798178,2.5119,147.3,147.27,15.0741]
[1718550798391,2.5121,147.29,147.26,25.1244]
[1718550798691,2.5122,147.28,147.25,12.5633]
[1718550799058,7.5366,147.28,147.25,7.5378]
[1718550799258,22.6091,147.29,147.25,12.5635]
[1718550799471,22.61,147.28,147.24,22.6153]
[1718550799675,25.1224,147.28,147.25,2.5127]
[1718550799870,15.0734,147.28,147.25,2.5127]
[1718550800195,2.5125,147.27,147.24,7.5383]
[1718550800390,7.5372,147.27,147.24,7.5383]
[1718550801196,5.0245,147.28,147.25,7.538]
[1718550801402,200.0,147.31,147.24,2.5128]
[1718550801403,7.5372,147.27,147.24,2.5128]
[1718550801576,2.5126,147.26,147.23,15.078]
[1718550801777,2.5126,147.26,147.23,22.6173]
[1718550802101,2.5126,147.26,147.24,2.5129]
[1718550802299,25.1249,147.27,147.24,2.5129]
[1718550802509,22.6124,147.27,147.24,2.5129]
[1718550802810,25.1249,147.27,147.24,2.5129]
[1718550803011,5.0251,147.26,147.22,23.5573]
[1718550803308,2.5126,147.26,147.23,7.539]
[1718550803484,7.5377,147.26,147.23,7.539]
[1718550803808,2.5126,147.26,147.24,2.5129]
[1718550803992,25.1245,147.27,147.24,2.5129]
[1718550804192,7.5373,147.27,147.24,7.5386]
[1718550804404,2.5124,147.27,147.24,15.0772]
[1718550804584,22.6116,147.27,147.24,2.5129]
[1718550804988,25.1241,147.27,147.24,2.5129]
[1718550805303,22.6116,147.27,147.24,2.5129]
[1718550805483,2.5125,147.26,147.23,25.1297]
[1718550805682,2.5125,147.26,147.23,22.6168]
[1718550805875,2.5125,147.26,147.23,25.1297]
[1718550806095,22.6105,147.28,147.24,22.6155]
[1718550806290,2.5126,147.26,147.23,7.5389]
[1718550806694,5.0252,147.26,147.23,2.5129]
[1718550806889,25.1258,147.26,147.23,2.5129]
[1718550808193,7.5378,147.26,147.23,2.5129]
[1718550808402,15.0754,147.26,147.23,2.5129]
[1718550808605,15.0754,147.26,147.23,7.539]
[1718550808779,7.5378,147.26,147.23,7.539]
[1718550809788,7.5378,147.26,147.23,15.0782]
[1718550810002,2.5126,147.26,147.23,7.539]
[1718550810304,2.5127,147.25,147.22,7.5393]
[1718550810490,22.6132,147.26,147.23,2.513]
[1718550811011,25.1258,147.26,147.23,2.513]
[1718550811687,2.5127,147.25,147.23,2.513]
[1718550811889,25.1259,147.26,147.23,2.513]
[1718550812289,207.5374,147.27,147.24,7.5384]
[1718550812484,2.5125,147.26,147.24,2.5127]
[1718550812689,2.5125,147.26,147.23,25.1296]
[1718550812905,7.5376,147.26,147.23,15.0779]
[1718550813106,7.5376,147.26,147.23,7.5388]
[1718550814218,7.5376,147.26,147.23,15.078]
[1718550814712,12.563,147.26,147.22,20.1051]
[1718550814916,206.98966648,147.27,147.21,5.0265]
[1718550814917,17.5892,147.25,147.21,5.0265]
[1718550815122,22.6148,147.25,147.22,2.5132]
[1718550815294,25.1276,147.25,147.22,2.5132]
[1718550815494,7.5384,147.25,147.22,7.5396]
[1718550815700,15.0766,147.25,147.22,7.5396]
[1718550815904,12.5638,147.25,147.22,2.5132]
[1718550816095,22.6147,147.25,147.22,2.5132]
[1718550816289,25.1275,147.25,147.22,2.5132]
[1718550816495,15.0774,147.24,147.21,2.5132]
[1718550816709,7.5387,147.24,147.21,7.54]
[1718550816891,7.5387,147.24,147.21,2.5132]
[1718550817090,7.5387,147.24,147.21,7.5399]
[1718550817421,2.5129,147.24,147.21,7.5399]
[1718550818097,15.0774,147.24,147.21,2.5132]
[1718550818421,2.513,147.23,147.21,2.5132]
[1718550818714,7.5387,147.24,147.21,7.54]
[1718550818913,25.1292,147.24,147.2,22.6213]
[1718550819096,7.5393,147.23,147.2,7.5404]
[1718550819291,15.0785,147.23,147.2,2.5134]
[1718550819497,2.5131,147.23,147.2,15.0812]
[1718550819714,7.5392,147.23,147.2,7.5405]
[1718550819904,7.5392,147.23,147.2,2.5134]
[1718550820092,15.0784,147.23,147.2,2.5134]
[1718550820293,7.5398,147.22,147.19,2.5136]
[1718550820504,2.5131,147.23,147.2,7.5404]
[1718550820804,2.5131,147.23,147.2,15.081]
[1718550821004,7.5393,147.23,147.2,7.5405]
[1718550821207,7.5393,147.23,147.19,17.5956]
[1718550821208,2.5132,147.22,147.19,7.5409]
[1718550821389,22.6178,147.23,147.19,22.6233]
[1718550821595,25.131,147.23,147.2,2.5135]
[1718550821786,2.5132,147.22,147.2,2.5135]
[1718550822213,7.5393,147.23,147.2,7.5406]
[1718550822797,15.0785,147.23,147.2,2.5135]
[1718550823095,2.5132,147.22,147.2,2.5135]
[1718550823296,7.5397,147.22,147.19,7.5408]
[1718550823612,25.1331,147.22,147.19,2.5137]
[1718550824522,7.5402,147.21,147.18,17.7523]
[1718550824699,2.5134,147.21,147.18,40.377]
[1718550825020,2.5134,147.21,147.19,2.5137]
[1718550825318,2.5134,147.21,147.18,40.3769]
[1718550825615,7.5402,147.21,147.18,5.0276]
[1718550825802,2.5136,147.2,147.17,15.0841]
[1718550826193,25.1349,147.21,147.18,2.5138]
[1718550826900,7.5405,147.21,147.18,7.5416]
[1718550827915,2.5135,147.2,147.17,25.1404]
[1718550828115,7.5406,147.2,147.17,7.5419]
[1718550828413,25.1349,147.21,147.18,2.5138]
[1718550828618,5.027,147.21,147.18,2.5138]
[1718550828824,7.5404,147.21,147.18,7.5416]
[1718550829126,25.1344,147.21,147.18,2.5138]
[1718550829318,22.6209,147.21,147.18,2.5138]
[1718550829618,2.5135,147.2,147.18,2.5138]
[1718550830125,2.5135,147.2,147.17,25.1401]
[1718550830305,2.5135,147.2,147.16,25.1417]
[1718550830306,2.5137,147.19,147.16,25.1417]
[1718550830995,22.6225,147.2,147.17,2.514]
[1718550830996,25.1362,147.2,147.17,2.514]
[1718550831203,7.5409,147.2,147.17,7.5421]
[1718550831405,2.5137,147.2,147.17,7.5421]
[1718550831721,7.5409,147.2,147.17,7.5421]
[1718550831919,5.3676,147.19,147.15,33.1532]
[1718550832228,22.9643,147.19,147.15,37.7805]
[1718550832522,2.5139,147.18,147.16,2.5142]
[1718550832718,25.4782,147.19,147.16,2.5142]
[1718550833098,22.9643,147.19,147.16,2.5142]
[1718550833499,12.9093,147.19,147.16,2.5142]
[1718550833821,7.8816,147.19,147.16,7.5427]
[1718550834128,22.9643,147.19,147.15,43.2105]
[1718550834423,2.5139,147.18,147.16,2.5142]
[1718550834601,2.5139,147.18,147.15,45.7247]
[1718550834802,15.0835,147.18,147.15,23.0959]
[1718550835008,2.514,147.18,147.15,35.668]
[1718550835311,6.9936386,147.21,147.2,7.5406]
[1718550835521,17.5871,147.27,147.2,50.43]
[1718550835731,7.5379,147.26,147.23,2.5129]
[1718550835900,7.5383,147.25,147.22,7.9431]
[1718550836106,5.0259,147.24,147.21,7.9433]
[1718550836303,2.513,147.23,147.21,5.43]
[1718550836514,7.5389,147.24,147.21,2.5133]
[1718550836802,2.5131,147.23,147.2,22.6217]
[1718550837028,25.1293,147.24,147.21,2.5133]